bitfinex-derivatives/quotes_ETHF0:USTF0_20250929
["timestamp","ask_amount","ask_price","bid_price","bid_amount"]
[1759136089832,4.26645,4131.4,4131.3,0.52545407]
[1759136090032,4.26645,4131.4,4131.3,0.32045407]
[1759136090440,4.26645,4131.4,4131.3,0.00215407]
[1759136090636,9.51245,4131.4,4131.3,0.00215407]
[1759136091345,0.87931,4129.9,4129.8,0.5233]
[1759136092044,0.87934,4129.6,4129.5,1.51144181]
[1759136092238,1.05962628,4129.6,4129.5,0.32047038]
[1759136092635,0.4436,4129.0,4128.9,1.06744181]
[1759136092831,0.1774,4128.9,4128.5,0.98814181]
[1759136093032,0.1774,4128.9,4128.5,0.5767]
[1759136093033,0.4436,4128.6,4128.5,0.5767]
[1759136093632,0.4436,4128.6,4128.5,1.10594217]
[1759136093831,0.1774,4128.9,4128.5,1.10594217]
[1759136093832,3.2078,4129.0,4128.5,1.10594217]
[1759136094039,3.4135,4129.0,4128.9,1.19712]
[1759136094944,3.41638628,4129.6,4129.5,1.10615]
[1759136095142,3.21068628,4129.6,4129.5,1.32435]
[1759136095836,0.00288628,4129.6,4129.5,1.32435]
[1759136097344,0.00288628,4129.6,4129.5,6.32435]
[1759136100448,3.2078,4130.2,4129.5,5.8886]
[1759136100644,3.6244,4131.6,4131.5,1.32414]
[1759136100848,3.6244,4131.6,4131.5,1.57214]
[1759136101149,3.6244,4131.6,4131.5,0.3218]
[1759136101150,3.8057,4131.6,4131.5,0.3218]
[1759136101552,3.80769403,4131.6,4131.5,0.32436041]
[1759136101741,8.80769403,4131.6,4131.5,0.00256041]
[1759136102950,0.4166,4130.9,4130.8,0.3218]
[1759136103151,0.5979,4130.9,4130.8,0.3218]
[1759136103548,0.8522,4130.9,4130.7,0.43562]
[1759136103744,0.5979,4130.8,4130.7,0.43562]
[1759136104050,0.5979,4130.6,4130.5,0.3218]
[1759136104241,0.4166,4130.3,4130.1,0.3218]
[1759136104445,4.06007,4130.3,4130.2,0.3218]
[1759136104644,4.06007,4130.3,4130.2,0.5431]
[1759136105552,3.6244,4130.3,4130.2,0.5431]
[1759136105849,3.8057,4130.3,4130.2,0.3218]
[1759136106045,1.03358,4130.2,4130.1,0.00219105]
[1759136106651,1.03358,4130.2,4130.1,0.32399105]
[1759136107058,1.03358,4130.2,4130.1,0.54529105]
[1759136107255,0.4166,4130.2,4130.1,0.76349105]
[1759136109055,0.4166,4130.2,4130.1,0.54529105]
[1759136109251,0.5979,4130.2,4130.1,0.54529105]
[1759136109944,0.5979,4130.2,4130.1,0.32399105]
[1759136110148,0.5979,4130.2,4130.1,0.00219105]
[1759136110356,0.5979,4130.2,4130.1,0.32399105]
[1759136111452,1.03358,4130.2,4130.1,0.00219105]
[1759136112250,6.03358,4130.2,4130.1,0.00219105]
[1759136114252,0.43575,4129.5,4129.4,3.85409199]
[1759136114457,1.05415,4129.5,4129.4,0.319]
[1759136115250,1.05415,4129.5,4129.4,0.32086995]
[1759136116654,1.17925,4129.5,4129.4,0.00186995]
[1759136117050,1.05415,4129.5,4129.4,0.00186995]
[1759136117651,1.17925,4129.5,4129.4,0.00186995]
[1759136118355,1.17925,4129.5,4128.8,3.64363]
[1759136118356,0.6184,4128.9,4128.8,0.96529199]
[1759136118556,1.30222,4128.9,4128.8,0.319]
[1759136118958,0.248,4128.9,4128.8,1.20303]
[1759136119254,3.2078,4129.1,4129.0,1.32961]
[1759136119463,1.0892,4130.3,4129.0,1.32961]
[1759136119464,3.4278,4129.8,4129.7,1.20293]
[1759136120746,3.6463,4129.8,4129.7,1.20293]
[1759136121559,0.468,4130.1,4130.0,1.3295]
[1759136121755,0.8664,4130.1,4130.0,0.319]
[1759136121961,0.6184,4130.0,4129.9,0.75471]
[1759136122462,0.6184,4130.0,4129.9,0.97661]
[1759136122663,0.4385,4130.0,4129.9,0.97661]
[1759136123662,0.4385,4130.0,4129.9,1.20291]
[1759136124358,0.8742,4130.0,4129.9,0.97661]
[1759136124557,1.0541,4130.0,4129.9,0.75471]
[1759136124862,1.06222,4129.8,4129.7,0.64670371]
[1759136125159,0.88237,4129.3,4129.2,0.5331]
[1759136125651,0.4466,4129.3,4129.2,1.19309]
[1759136125856,0.65614,4129.6,4129.5,1.01115]
[1759136126056,0.4684,4129.6,4129.5,1.32695]
[1759136126656,0.90414,4129.6,4129.5,1.32695]
[1759136126959,0.4684,4129.6,4129.5,1.32695]
[1759136127162,0.248,4129.7,4129.6,0.87724]
[1759136127361,0.248,4129.7,4129.6,1.19304]
[1759136127568,3.2078,4129.8,4129.7,1.19303]
[1759136127861,3.2078,4129.8,4129.7,1.83988512]
[1759136128164,4.09012,4129.8,4129.7,1.19303]
[1759136128468,3.6544,4129.8,4129.7,1.19303]
[1759136128661,4.09012,4129.8,4129.7,1.19303]
[1759136129167,4.27002,4129.8,4129.7,0.5331]
[1759136129465,3.2078,4129.8,4129.7,1.19303]
[1759136129660,4.33812,4129.8,4129.7,0.5331]
[1759136129869,4.51802,4129.8,4129.7,0.3158]
[1759136130667,0.88236,4129.4,4129.3,0.96265512]
[1759136130863,0.88236,4129.4,4129.3,1.17995512]
[1759136131464,0.88236,4129.4,4129.3,0.5331]
[1759136134171,0.88236,4129.4,4129.3,0.96887]
[1759136134669,1.06226,4129.4,4129.3,0.5331]
[1759136134869,1.06226,4129.4,4129.3,1.18137747]
[1759136135466,0.4466,4129.4,4129.3,1.61714747]
[1759136135669,0.4466,4129.4,4129.3,1.84134747]
[1759136135871,3.86393,4129.8,4129.7,0.87723]
[1759136136069,3.2078,4129.8,4129.7,1.19303]
[1759136136863,3.2078,4129.8,4129.7,2.05066008]
[1759136137878,0.2204,4130.1,4130.0,1.3269]
[1759136138079,0.2204,4130.1,4130.0,1.97522045]
[1759136140681,3.2078,4130.3,4130.2,1.19298]
[1759136141185,3.4558,4130.3,4130.2,1.19298]
[1759136141578,3.6762,4130.3,4130.2,1.19298]
[1759136143381,3.9024,4130.3,4130.2,1.19298]
[1759136143779,3.4282,4130.3,4130.2,1.19298]
[1759136144080,3.6762,4130.3,4130.2,1.19298]
[1759136145082,3.9024,4130.3,4130.2,1.19298]
[1759136145778,4.51797,4130.3,4130.2,0.3158]
[1759136146079,4.51797,4130.3,4130.0,0.1339]
[1759136146080,0.4466,4130.1,4130.0,1.08982045]
[1759136146280,0.4466,4130.1,4130.0,1.3269]
[1759136146281,0.2204,4130.1,4130.0,1.3269]
[1759136146485,3.4282,4130.3,4130.2,1.19298]
[1759136146686,3.6762,4130.3,4130.2,1.19298]
[1759136147487,4.11187,4130.3,4130.2,1.19298]
[1759136147982,3.2078,4130.3,4130.2,1.19298]
[1759136148185,0.1799,4131.3,4130.2,1.19298]
[1759136148186,3.4282,4131.1,4131.0,1.01099]
[1759136148477,4.33798,4131.1,4131.0,1.32679]
[1759136148981,0.65602,4130.8,4130.7,0.64763569]
[1759136149182,0.65603,4130.7,4130.6,0.64763569]
[1759136149486,0.6265,4130.6,4130.5,1.21718569]
[1759136149682,0.6265,4130.6,4130.5,1.53298569]
[1759136149885,0.8745,4130.6,4130.5,1.75028569]
[1759136150084,1.31014,4130.6,4130.5,1.31463569]
[1759136150278,1.31014,4130.6,4130.5,1.09733569]
[1759136150878,1.31014,4130.6,4130.5,0.64763569]
[1759136151182,1.31014,4130.6,4130.5,0.4497]
[1759136151375,1.31014,4130.6,4130.5,1.09733569]
[1759136151576,1.13024,4130.6,4130.5,1.75028569]
[1759136152274,1.13024,4130.6,4130.5,1.97448569]
[1759136153379,1.13024,4130.6,4130.5,1.32685]
[1759136153585,1.13024,4130.6,4130.5,0.8912]
[1759136153783,1.31014,4130.6,4130.5,0.4497]
[1759136154178,1.31014,4130.6,4130.5,0.3158]
[1759136155686,0.90404,4130.6,4130.5,0.8614]
[1759136156086,0.68364,4130.6,4130.5,1.50903569]
[1759136156288,0.43564,4130.6,4130.5,1.50903569]
[1759136156786,3.2078,4131.1,4131.0,0.1332]
[1759136156989,3.4558,4131.1,4131.0,0.1332]
[1759136157175,4.33098,4131.1,4131.0,0.8829]
[1759136157378,4.51088,4131.1,4131.0,0.3373]
[1759136157586,0.87524,4130.6,4130.5,1.32443569]
[1759136157786,1.05514,4130.6,4130.5,0.6768]
[1759136158387,1.05514,4130.6,4130.5,0.4705]
[1759136160083,0.87524,4130.6,4130.5,0.6768]
[1759136161882,1.05514,4130.6,4130.5,0.6768]
[1759136162386,0.87527,4130.3,4130.2,1.19123569]
[1759136162987,0.87527,4130.3,4130.2,1.39733569]
[1759136164192,0.87527,4130.3,4130.2,1.3971618]
[1759136165191,0.87527,4130.3,4130.2,0.7497]
[1759136166186,1.05517,4130.3,4130.2,0.7497]
[1759136166592,0.87527,4130.3,4130.2,0.7497]
[1759136166794,0.87527,4130.3,4130.2,1.39747617]
[1759136168496,1.05517,4130.3,4130.2,1.19143657]
[1759136168691,0.43568,4130.2,4130.1,0.64783657]
[1759136168897,0.43568,4130.2,4130.1,1.39753657]
[1759136170399,0.65948,4130.2,4130.1,1.39753657]
[1759136171391,1.05518,4130.2,4130.1,0.98513657]
[1759136171591,1.05518,4130.2,4130.1,0.64783657]
[1759136171793,0.43571,4129.9,4129.8,0.98513657]
[1759136171992,1.30221,4129.9,4129.8,0.3373]
[1759136174103,0.86204,4129.6,4129.5,0.1339]
[1759136174399,1.28894,4129.6,4129.5,0.1339]
[1759136174702,1.28894,4129.6,4129.4,1.20066]
[1759136174703,0.2186,4129.5,4129.4,1.20066]
[1759136175900,0.2186,4129.9,4129.8,0.2218]
[1759136176106,0.247,4129.9,4129.8,0.7649]
[1759136176499,0.4656,4129.9,4129.8,1.20062]
[1759136176802,0.6733,4129.9,4129.8,1.20062]
[1759136177101,0.247,4129.9,4129.8,1.20062]
[1759136178703,3.2078,4130.1,4130.0,1.3293]
[1759136178902,3.4548,4130.1,4130.0,1.3293]
[1759136180397,3.89049,4130.1,4130.0,1.3293]
[1759136182202,3.4548,4130.1,4130.0,1.3293]
[1759136182791,3.89049,4130.1,4130.0,1.3293]
[1759136182993,4.10909,4130.1,4130.0,0.8936]
[1759136183400,4.10909,4130.1,4130.0,1.3293]
[1759136183900,4.10909,4130.1,4130.0,0.8936]
[1759136184604,4.31679,4130.1,4130.0,0.8936]
[1759136187504,4.49659,4130.1,4130.0,0.6876]
[1759136189004,4.31679,4130.1,4130.0,0.8937]
[1759136192900,4.49659,4130.1,4130.0,0.8937]
[1759136193096,4.49659,4130.1,4130.0,0.4658]
[1759136193696,4.49659,4130.1,4130.0,0.3371]
[1759136196907,0.87651,4129.9,4129.8,0.64783657]
[1759136197203,1.30331,4129.9,4129.8,0.98013657]
[1759136197804,1.30331,4129.9,4129.8,1.19343657]
[1759136197999,1.30331,4129.9,4129.8,0.2133]
[1759136198205,0.6878,4129.9,4129.6,4.07131425]
[1759136198405,0.753,4129.7,4129.6,4.28461425]
[1759136198708,1.0,4129.7,4129.6,4.28461425]
[1759136199006,1.43573,4129.7,4129.6,4.28461425]
[1759136200006,1.43573,4129.7,4129.6,0.7517]
[1759136200399,1.43573,4129.7,4129.6,1.61521425]
[1759136201001,0.43574,4129.6,4129.5,0.86351425]
[1759136201209,1.18875,4129.5,4129.4,1.40911425]
[1759136205210,1.18875,4129.5,4129.4,0.5456]
[1759136205413,1.18875,4129.5,4129.4,0.7517]
[1759136208913,1.18875,4129.5,4129.4,1.40994605]
[1759136209111,1.31505,4129.5,4129.4,0.5456]
[1759136210319,1.31505,4129.5,4129.4,0.3323]
[1759136211525,1.31505,4129.5,4129.2,1.30012605]
[1759136211825,1.18876,4129.4,4129.3,0.5456]
[1759136212319,1.18876,4129.4,4129.3,0.98137]
[1759136212613,0.753,4129.4,4129.3,0.98137]
[1759136216517,0.215,4129.8,4129.7,0.65433]
[1759136216722,0.462,4129.8,4129.7,1.18233]
[1759136216922,0.89772,4129.8,4129.7,0.7466]
[1759136217218,1.23152,4129.8,4129.7,0.7466]
[1759136217420,1.23152,4129.8,4129.7,1.18233]
[1759136217619,1.44062,4129.8,4129.7,1.18233]
[1759136226826,1.44062,4129.8,4129.7,0.7466]
[1759136227222,1.44062,4129.8,4129.7,0.533]
[1759136228029,1.44062,4129.8,4129.7,0.96873]
[1759136228230,1.44062,4129.8,4129.7,1.18233]
[1759136228929,0.215,4129.8,4129.7,1.18233]
[1759136229236,4.40139,4130.1,4130.0,0.7466]
[1759136229533,4.64839,4130.1,4130.0,0.3144]
[1759136230843,4.64839,4130.1,4130.0,0.533]
[1759136231335,4.64839,4130.1,4130.0,0.3144]
[1759136233039,0.4329,4129.7,4129.6,0.2142]
[1759136233239,1.0045,4129.7,4129.6,0.538]
[1759136233642,1.0045,4129.7,4129.6,0.754]
[1759136233938,1.44023,4129.7,4129.6,0.754]
[1759136242145,1.44023,4129.7,4129.6,0.538]
[1759136246648,0.88016,4129.4,4129.3,0.86434605]
[1759136246844,0.88016,4129.4,4129.1,1.28644512]
[1759136246845,1.21087,4129.3,4129.2,1.18484605]
[1759136247240,1.45787,4129.3,4129.2,1.18484605]
[1759136247446,1.45787,4129.3,4129.2,0.5304]
[1759136247753,1.45787,4129.3,4129.2,0.3205]
[1759136248544,0.43579,4129.2,4129.1,1.18484605]
[1759136248745,1.21089,4129.2,4129.1,1.18484605]
[1759136248953,0.7751,4129.2,4129.1,1.61154605]
[1759136249147,0.3307,4129.5,4129.1,1.29104605]
[1759136249348,0.90465,4129.6,4129.5,0.8795]
[1759136249857,1.23535,4129.6,4129.5,0.8795]
[1759136250647,3.8654,4130.0,4129.9,0.2099]
[1759136250955,4.4186,4130.0,4129.9,0.7472]
[1759136251155,4.6656,4130.0,4129.9,0.7472]
[1759136251743,0.2219,4130.1,4130.0,0.1323]
[1759136251951,0.4689,4130.1,4130.0,0.8795]
[1759136252353,0.2219,4130.1,4130.0,1.3152]
[1759136252542,0.4689,4130.1,4130.0,1.3152]
[1759136256357,0.90459,4130.1,4130.0,0.8795]
[1759136256957,0.4689,4130.1,4130.0,1.3152]
[1759136257556,0.90459,4130.1,4130.0,1.3152]
[1759136258461,0.90459,4130.1,4130.0,0.8795]
[1759136259556,0.90459,4130.1,4130.0,1.3152]
[1759136260867,0.65759,4130.1,4130.0,1.3152]
[1759136262165,0.2219,4130.1,4130.0,1.3152]
[1759136264162,3.2078,4130.5,4130.2,0.4267]
[1759136264355,0.2219,4130.7,4130.6,1.18284]
[1759136264552,0.4679,4130.7,4130.6,0.7472]
[1759136264765,0.90353,4130.7,4130.6,0.7472]
[1759136265466,1.23423,4130.7,4130.6,0.7472]
[1759136266364,1.45673,4130.7,4130.6,0.7472]
[1759136270474,1.0211,4130.7,4130.6,0.7472]
[1759136270673,1.12603,4130.7,4130.6,1.18284]
[1759136270878,1.12603,4130.7,4130.6,0.7472]
[1759136271961,1.45673,4130.7,4130.6,0.7472]
[1759136273074,1.45673,4130.7,4130.6,0.3205]
[1759136274976,1.45673,4130.7,4130.6,0.5304]
[1759136276176,1.12603,4130.7,4130.6,0.7438]
[1759136276376,1.43833,4130.7,4130.6,0.7438]
[1759136276573,0.6904,4130.7,4130.6,1.17944]
[1759136277077,3.2078,4131.0,4130.8,0.2057]
[1759136277275,0.97147,4131.3,4131.2,0.7527]
[1759136277578,1.42607,4131.3,4131.2,0.7527]
[1759136279181,1.18007,4131.3,4131.2,0.7527]
[1759136279381,1.42607,4131.3,4131.2,0.7527]
[1759136279879,0.4322,4131.3,4131.2,0.7527]
[1759136280081,1.11376,4131.3,4131.2,0.7527]
[1759136280282,1.42606,4131.3,4131.2,0.7527]
[1759136283991,0.43561,4130.9,4130.8,0.3336]
[1759136284198,1.18011,4130.9,4130.8,0.5393]
[1759136287396,1.18011,4130.9,4130.8,0.3336]
[1759136288793,1.18011,4130.9,4130.8,0.7527]
[1759136291596,0.86781,4130.9,4130.8,0.7527]
[1759136291998,0.86781,4130.9,4130.8,1.39828679]
[1759136292198,0.65921,4130.9,4130.8,1.39828679]
[1759136293201,0.65921,4130.9,4130.8,1.83390679]
[1759136293402,1.09084403,4131.6,4131.0,1.0059]
[1759136293403,3.2078,4131.5,4131.0,1.0059]
[1759136293599,3.85374,4131.5,4131.4,0.767]
[1759136294704,4.40094,4131.5,4131.4,0.767]
[1759136295606,1.19314,4131.5,4131.4,0.767]
[1759136296204,0.86664,4131.5,4131.4,0.767]
[1759136296700,0.64594,4131.5,4131.4,0.767]
[1759136297005,1.19314,4131.5,4131.4,0.767]
[1759136297605,1.19314,4131.5,4131.4,0.5437]
[1759136299009,0.43556,4131.3,4131.2,3.5367]
[1759136299207,1.19316,4131.3,4131.2,3.5367]
[1759136300104,0.7576,4131.3,4131.2,3.7515]
[1759136301415,0.7576,4131.3,4131.2,3.9748]
[1759136302314,1.19316,4131.3,4131.2,3.9748]
[1759136302516,1.19316,4131.3,4131.2,0.767]
[1759136302809,1.19316,4131.3,4131.2,0.5437]
[1759136305019,0.7576,4131.3,4131.2,0.5437]
[1759136305218,1.19316,4131.3,4131.2,1.41300442]
[1759136305414,0.7576,4131.3,4131.2,1.41300442]
[1759136305625,0.64596,4131.3,4131.2,1.41300442]
[1759136306820,1.17336,4131.3,4131.2,1.41300442]
[1759136309325,1.17336,4131.3,4131.2,0.767]
[1759136309518,0.86427,4131.2,4131.1,0.97690442]
[1759136309711,1.17637,4131.2,4131.1,0.97690442]
[1759136310020,1.17637,4131.2,4131.1,1.41300442]
[1759136311619,0.2134,4131.2,4131.1,1.20258]
[1759136311917,0.64897,4131.2,4131.1,1.20258]
[1759136312425,0.64897,4131.2,4131.1,0.767]
[1759136314426,0.96107,4131.2,4131.1,0.767]
[1759136314617,1.17637,4131.2,4131.1,0.767]
[1759136315620,1.17637,4131.2,4131.1,1.20258]
[1759136317030,1.17637,4131.2,4131.1,0.767]
[1759136317729,1.17637,4131.2,4131.1,1.20258]
[1759136318532,1.17637,4131.2,4131.1,0.767]
[1759136319224,0.68155,4131.4,4131.2,0.43557]
[1759136319423,0.68155,4131.4,4131.3,1.41413024]
[1759136319424,0.64895,4131.4,4131.3,1.41413024]
[1759136319626,0.96105,4131.4,4131.3,1.41413024]
[1759136319927,1.17635,4131.4,4131.3,1.41413024]
[1759136321332,1.42235,4131.4,4131.3,1.41413024]
[1759136321533,0.9868,4131.4,4131.3,1.84969024]
[1759136322132,0.9868,4131.4,4131.3,1.41413024]
[1759136322425,1.42235,4131.4,4131.3,1.41413024]
[1759136323333,1.42235,4131.4,4131.3,0.767]
[1759136324133,0.9868,4131.4,4131.3,1.20256]
[1759136329044,1.42235,4131.4,4131.3,1.20256]
[1759136329938,0.9868,4131.4,4131.3,1.20256]
[1759136331537,1.42235,4131.4,4131.3,1.20256]
[1759136331737,1.42235,4131.4,4131.3,0.767]
[1759136332538,1.42235,4131.4,4131.3,1.41425949]
[1759136335841,0.89495,4131.4,4131.3,1.41425949]
[1759136336342,1.21115,4131.4,4131.3,1.41425949]
[1759136338641,1.43445,4131.4,4131.3,1.41425949]
[1759136340342,1.43445,4131.4,4131.3,0.767]
[1759136345449,1.43445,4131.4,4131.3,0.5451]
[1759136346847,1.19137,4131.2,4131.1,1.19874605]
[1759136347044,1.19137,4131.2,4130.9,1.28644512]
[1759136347264,10.89063,4130.8,4129.4,1.94959936]
[1759136347559,0.4358,4129.1,4129.0,3.538]
[1759136347864,0.6818,4129.1,4129.0,3.538]
[1759136348161,0.246,4129.1,4129.0,3.7604]
[1759136348369,0.78959897,4129.1,4129.0,3.7604]
[1759136349260,0.78959897,4129.1,4129.0,4.0948]
[1759136349866,0.78959897,4129.1,4129.0,4.53061]
[1759136350466,0.78959897,4129.1,4129.0,4.0948]
[1759136350669,0.54359897,4129.1,4129.0,4.0948]
[1759136350872,0.78959897,4129.1,4129.0,4.0948]
[1759136351257,3.40183245,4129.9,4129.0,4.0948]
[1759136351462,3.40183245,4129.9,4129.8,0.5404]
[1759136351759,4.19218706,4129.9,4129.8,0.5404]
[1759136353466,0.91612,4128.9,4127.9,3.23202569]
[1759136353761,0.2163,4128.1,4128.0,0.5526]
[1759136353968,0.4623,4128.1,4128.0,0.5526]
[1759136354673,0.4623,4128.1,4128.0,0.55468823]
[1759136354674,0.46526656,4128.1,4128.0,0.55468823]
[1759136355678,0.46526656,4128.1,4128.0,0.88908823]
[1759136356165,0.00296656,4128.1,4128.0,0.88908823]
[1759136357070,3.2078,4128.9,4128.8,0.758]
[1759136357268,3.6628,4128.9,4128.8,0.758]
[1759136357970,3.66495359,4128.9,4128.8,0.758]
[1759136358174,3.41895359,4128.9,4128.8,0.758]
[1759136358378,3.66495359,4128.9,4128.8,0.758]
[1759136358968,4.10077359,4128.9,4128.8,0.758]
[1759136359666,4.58187359,4128.9,4128.8,0.3259]
[1759136360277,4.58187359,4128.9,4128.5,0.1295]
[1759136360278,0.43585,4128.6,4128.5,0.1295]
[1759136360582,0.85869,4128.2,4128.1,0.4321]
[1759136360875,0.85869,4128.2,4128.1,0.758]
[1759136360876,1.10469,4128.2,4128.1,0.758]
[1759136361177,0.455,4128.2,4128.1,0.758]
[1759136361570,0.4228,4126.5,4126.4,3.2078]
[1759136361776,0.4228,4126.5,4126.4,3.6399]
[1759136361777,0.7431,4126.5,4126.4,3.6399]
[1759136361976,0.5293,4126.5,4126.4,3.6399]
[1759136362782,0.5293,4126.5,4126.4,3.64192295]
[1759136363373,0.7431,4126.5,4126.4,3.64192295]
[1759136363680,0.7431,4126.5,4126.4,3.96782295]
[1759136364980,0.8789,4126.5,4126.4,3.96782295]
[1759136365278,0.9891,4126.5,4126.4,0.74852295]
[1759136365667,0.7763,4126.5,4126.4,0.74852295]
[1759136365874,0.456,4126.5,4126.4,0.74852295]
[1759136366172,1.1347,4126.5,4126.4,0.74852295]
[1759136366370,1.57059168,4126.5,4126.4,0.74852295]
[1759136366581,0.7747,4126.5,4126.4,0.74852295]
[1759136366772,0.456,4126.5,4126.4,0.74852295]
[1759136366972,0.68306,4126.6,4126.5,0.8694]
[1759136367179,1.25476355,4126.6,4126.5,0.8694]
[1759136367878,1.25461529,4126.6,4126.5,0.8694]
[1759136368079,1.79361529,4126.6,4126.5,0.8694]
[1759136368977,1.79361529,4126.6,4126.5,0.7465]
[1759136369783,2.01781529,4126.6,4126.5,0.7465]
[1759136370877,1.58175529,4126.6,4126.4,0.00202295]
[1759136371083,1.58175529,4126.6,4124.5,0.1229]
[1759136371084,1.33518,4125.5,4125.4,3.4127]
[1759136371381,1.33518,4125.5,4125.4,3.9543]
[1759136371382,2.01793529,4125.5,4125.4,3.9543]
[1759136371574,0.97508,4126.4,4126.3,0.4227]
[1759136371773,1.5464383,4126.4,4126.3,0.7465]
[1759136371974,1.5464383,4126.4,4126.3,0.74854696]
[1759136371975,1.77339144,4126.4,4126.3,0.74854696]
[1759136373285,2.02139144,4126.4,4126.3,0.74854696]
[1759136373684,0.79441144,4126.4,4126.3,0.74854696]
[1759136373986,1.01019144,4126.4,4126.3,0.74854696]
[1759136374581,0.57411144,4126.4,4126.3,0.74854696]
[1759136375179,0.79441144,4126.4,4126.3,0.74854696]
[1759136376980,0.57411144,4126.4,4126.3,1.18463696]
[1759136377583,1.54919144,4126.4,4126.3,0.74854696]
[1759136378283,0.79441144,4126.4,4126.3,1.18463696]
[1759136380391,0.79441144,4126.4,4126.3,0.00204696]
[1759136380392,1.77339144,4126.4,4126.3,0.00204696]
[1759136380585,0.7632,4125.2,4125.1,0.7465]
[1759136380787,0.5713583,4125.2,4125.1,0.7465]
[1759136380988,0.248,4125.8,4125.7,0.7465]
[1759136381285,0.81889014,4125.8,4125.7,0.7465]
[1759136381489,1.03919014,4125.8,4125.7,0.74837598]
[1759136382092,1.58209014,4125.8,4125.7,0.20677598]
[1759136386389,2.01823014,4125.8,4125.7,0.20677598]
[1759136386995,2.01823014,4125.8,4125.7,0.74837598]
[1759136387786,1.19947,4124.6,4124.5,0.4227]
[1759136388083,1.19951,4124.2,4124.1,0.7465]
[1759136388284,1.77040014,4124.2,4124.1,0.7465]
[1759136388887,1.77040014,4124.2,4124.1,0.74901695]
[1759136394094,1.77040014,4124.2,4124.1,0.42521695]
[1759136394695,1.77040014,4124.2,4124.1,0.75651695]
[1759136394891,1.22750014,4124.2,4124.1,0.75651695]
[1759136395092,0.57089014,4124.2,4124.1,1.19283695]
[1759136396492,1.00720014,4124.2,4124.1,1.19283695]
[1759136396898,0.57089014,4124.2,4124.1,1.19283695]
[1759136397397,1.09839014,4124.2,4124.1,1.19283695]
[1759136397597,1.53470014,4124.2,4124.1,1.19283695]
[1759136399994,1.74520014,4124.2,4124.1,0.00251695]
[1759136400200,0.8659,4123.5,4123.4,0.7729]
[1759136400395,1.49769759,4123.5,4123.4,0.7729]
[1759136400801,1.70819759,4123.5,4123.4,0.7729]
[1759136401202,1.70819759,4123.5,4123.4,0.77511443]
[1759136401203,1.71061048,4123.5,4123.4,0.77511443]
[1759136402001,1.17680289,4123.5,4123.4,0.77511443]
[1759136403300,1.30470289,4123.5,4123.4,0.44381443]
[1759136403594,1.30470289,4123.5,4123.4,0.22571443]
[1759136404695,0.00241289,4123.5,4123.4,0.77511443]
[1759136405002,3.7353,4124.3,4124.2,0.7729]
[1759136405198,0.5275,4124.3,4124.2,0.7729]
[1759136406011,1.30229,4123.5,4123.2,3.2078]
[1759136406302,1.55029,4123.5,4122.7,3.2078]
[1759136406500,0.43635,4123.9,4123.8,0.2235]
[1759136406700,1.17435,4123.9,4123.8,0.7729]
[1759136407011,0.738,4123.9,4123.8,0.7729]
[1759136407197,0.5275,4123.9,4123.8,0.7729]
[1759136408405,0.2096,4123.9,4123.8,0.7729]
[1759136411208,0.3179,4124.2,4123.8,0.4416]
[1759136411404,0.96383,4124.1,4124.0,1.20922]
[1759136411600,1.17433,4124.1,4124.0,1.20922]
[1759136412104,0.52986674,4124.3,4124.2,0.65981]
[1759136412312,0.43866674,4124.3,4124.2,0.7729]
[1759136412908,0.43866674,4124.3,4124.2,1.20921]
[1759136413095,0.43866674,4124.3,4124.2,0.7729]
[1759136413300,0.97356674,4124.3,4124.2,0.7729]
[1759136413798,1.18146674,4124.3,4124.2,0.7729]
[1759136414005,0.74516674,4124.3,4124.2,1.20921]
[1759136414505,1.18146674,4124.3,4124.2,1.20921]
[1759136415711,0.74516674,4124.3,4124.2,1.20921]
[1759136415901,0.00236674,4124.3,4124.2,1.20921]
[1759136416100,0.00236674,4124.3,4124.2,1.45821]
[1759136416309,0.00236674,4124.3,4124.2,6.45821]
[1759136418407,3.7384,4125.1,4125.0,1.18013]
[1759136419205,4.17462,4125.1,4125.0,1.18013]
[1759136419409,3.74135155,4125.1,4125.0,1.18013]
[1759136421200,3.74135155,4125.1,4125.0,1.30813]
[1759136421511,0.00295155,4125.1,4125.0,1.30813]
[1759136429418,0.00295155,4125.1,4125.0,4.51593]
[1759136432923,0.53975155,4125.1,4125.0,4.38793]
[1759136433622,0.53975155,4125.1,4125.0,4.51293]
[1759136435328,0.53975155,4125.1,4125.0,4.76093]
[1759136435513,0.00295155,4125.1,4125.0,4.76093]
[1759136440921,0.32155155,4125.1,4125.0,4.76093]
[1759136442328,1.18217155,4125.1,4125.0,4.38793]
[1759136442530,1.18217155,4125.1,4125.0,4.31703]
[1759136442730,0.74595155,4125.1,4125.0,4.62693]
[1759136443234,0.53975155,4125.1,4125.0,4.62693]
[1759136443425,0.53975155,4125.1,4125.0,4.75193]
[1759136443625,0.97597155,4125.1,4125.0,4.75193]
[1759136444132,0.97597155,4125.1,4125.0,4.62693]
[1759136445435,1.18217155,4125.1,4125.0,4.62693]
[1759136446333,1.18217155,4125.1,4125.0,4.1907]
[1759136446734,1.18217155,4125.1,4125.0,4.62693]
[1759136447530,0.43626,4124.7,4124.6,0.7416]
[1759136447840,1.17926,4124.7,4124.6,0.9896]
[1759136448025,0.43625,4124.9,4124.6,0.9896]
[1759136448225,0.00295155,4125.1,4125.0,1.30283]
[1759136448527,0.00295155,4125.1,4125.0,1.55083]
[1759136448929,0.42735155,4125.1,4125.0,1.17783]
[1759136449134,0.74595155,4125.1,4125.0,1.42583]
[1759136450034,0.53975155,4125.1,4125.0,1.42583]
[1759136459148,0.00295155,4125.1,4125.0,1.55703]
[1759136460349,0.53265155,4125.1,4125.0,1.55703]
[1759136461349,0.96887155,4125.1,4125.0,1.55703]
[1759136462051,0.53265155,4125.1,4125.0,1.55703]